bitfinex/quotes_ETHUSD_20250814
["timestamp","ask_amount","ask_price","bid_price","bid_amount"]
[1755180859394,0.002,4593.1,4593.0,2.17722621]
[1755180859595,0.002,4593.5,4593.0,6.79959847]
[1755180859776,0.002,4593.5,4593.4,2.17703661]
[1755180859954,0.002,4593.5,4593.4,6.37913661]
[1755180860353,0.002,4593.5,4593.4,7.13913661]
[1755180860655,0.002,4593.5,4593.4,7.59763661]
[1755180860862,0.002,4593.5,4593.4,3.83763661]
[1755180861208,0.002,4593.5,4593.4,7.16090697]
[1755180861502,0.002,4593.5,4593.4,8.62120755]
[1755180861866,0.002,4593.5,4593.4,11.62120755]
[1755180862066,0.002,4593.9,4593.6,2.17692218]
[1755180862267,0.002,4594.1,4594.0,2.72675228]
[1755180862504,1e-08,4594.5,4594.0,11.09235228]
[1755180862676,1e-08,4594.5,4594.4,5.72656277]
[1755180862865,1e-08,4594.5,4594.4,10.54016277]
[1755180863066,1e-08,4594.5,4594.4,7.44196277]
[1755180863276,1e-08,4594.5,4594.4,11.19896277]
[1755180863475,1e-08,4594.5,4594.4,6.97596277]
[1755180863794,1e-08,4594.5,4594.4,11.21103434]
[1755180864117,1e-08,4594.5,4594.4,11.67703434]
[1755180864280,1e-08,4594.5,4594.4,12.22703434]
[1755180864480,1e-08,4594.5,4594.4,11.10123434]
[1755180864681,1e-08,4594.5,4594.4,12.11723434]
[1755180864981,2.17566973,4596.3,4594.5,5.17646811]
[1755180865182,2.17552224,4596.6,4594.6,1.13177865]
[1755180865384,1.1281,4596.5,4594.7,4.786]
[1755180865584,2.17601576,4595.6,4595.3,0.1088]
[1755180865889,1.1281,4596.5,4594.7,4.786]
[1755180865890,1.1281,4596.2,4595.8,0.1088]
[1755180866087,2.17582134,4596.0,4595.9,3.755]
[1755180866416,2.17577949,4596.1,4595.8,0.1088]
[1755180866584,2.17580504,4596.0,4595.9,3.755]
[1755180866785,1.1281,4596.1,4595.9,3.755]
[1755180867052,0.474,4596.0,4595.9,3.755]
[1755180867516,1.6021,4596.8,4595.9,3.8638]
[1755180867720,2.6494737,4596.7,4596.6,0.1088]
[1755180867921,4.37286715,4596.7,4596.6,3.753]
[1755180868121,7.48166715,4596.7,4596.6,3.753]
[1755180868648,2.1757577,4596.1,4596.0,0.1088]
[1755180868791,3.7778577,4596.1,4594.7,4.786]
[1755180868993,0.474,4596.0,4595.4,0.1088]
[1755180869228,0.474,4596.0,4595.7,0.1088]
[1755180869430,2.17589973,4595.8,4595.7,0.1088]
[1755180869590,2.17589973,4595.8,4594.7,4.786]
[1755180869591,2.17604178,4595.5,4595.4,0.1088]
[1755180869792,0.55,4595.4,4594.4,0.0008]
[1755180870008,2.17646802,4594.6,4594.5,3.752]
[1755180870210,0.474,4594.6,4594.5,3.752]
[1755180870410,3.474,4595.2,4594.5,3.752]
[1755180870625,5.17627274,4595.1,4595.0,0.1088]
[1755180870854,0.474,4595.1,4595.0,3.8608]
[1755180871003,2.6502312,4595.1,4595.0,3.8608]
[1755180871331,0.474,4595.1,4595.0,3.8608]
[1755180871534,2.17614218,4595.3,4595.0,3.8608]
[1755180871713,2.28478987,4595.7,4595.0,0.1088]
[1755180871714,2.1762312,4595.1,4595.0,0.1088]
[1755180871908,0.474,4595.1,4595.0,3.8598]
[1755180872109,1.1281,4595.9,4595.0,3.8598]
[1755180872308,2.17603378,4595.6,4595.0,3.8598]
[1755180872510,3.0,4595.6,4594.1,1.1406]
[1755180872711,2.17604178,4595.5,4595.4,0.1088]
[1755180872937,2.65004178,4595.5,4595.4,3.75]
[1755180873232,3.77814178,4595.5,4595.4,3.75]
[1755180873433,1.6021,4595.5,4595.4,3.75]
[1755180873635,3.77815363,4595.5,4595.4,3.75]
[1755180873834,3.77815363,4595.5,4595.0,0.1088]
[1755180873835,1.6021,4595.5,4595.0,0.1088]
[1755180874009,3.1088,4595.6,4595.0,0.1088]
[1755180874010,2.17616674,4595.3,4595.0,0.1088]
[1755180874202,0.474,4595.2,4595.1,3.75]
[1755180874440,6.77828384,4595.2,4595.0,0.1088]
[1755180874740,4.1281,4595.1,4594.9,3.749]
[1755180875037,2.17646802,4594.6,4594.5,3.749]
[1755180875201,3.77856802,4594.6,4594.5,3.749]
[1755180875402,2.65046802,4594.6,4594.5,3.749]
[1755180875631,0.474,4594.6,4594.5,3.749]
[1755180876019,0.474,4594.6,4593.1,3.89769003]
[1755180876220,1.6021,4594.6,4593.2,5.031329]
[1755180876430,4.6021,4595.3,4593.3,0.48777084]
[1755180876637,0.474,4595.2,4593.3,1.1406]
[1755180876805,5.65019946,4595.2,4593.3,1.1406]
[1755180877000,0.55,4595.0,4593.2,1.282329]
[1755180877231,2.17683329,4593.9,4593.3,3.748]
[1755180877443,2.17686134,4593.8,4592.9,4.785]
[1755180877657,2.17684705,4593.8,4593.0,5.92521841]
[1755180877806,0.474,4593.9,4592.9,4.785]
[1755180878001,2.17684705,4593.8,4593.0,4.2265]
[1755180878201,2.17686231,4593.8,4593.0,6.15369735]
[1755180878819,1.62387763,4593.7,4593.0,3.747]
[1755180879035,2.17717881,4593.1,4593.0,3.747]
[1755180879245,3.0,4593.6,4591.1,6.96210139]
[1755180879441,1.6021,4594.3,4593.6,2.17694055]
[1755180879742,1.6021,4594.3,4593.7,3.747]
[1755180879914,0.474,4594.3,4593.7,4.1217]
[1755180880122,3.0,4594.7,4593.7,0.3747]
[1755180880328,2.17676157,4594.0,4592.9,2.17725623]
[1755180880503,2.17675636,4594.0,4593.0,5.92422269]
[1755180880707,2.17681339,4593.9,4593.1,2.17717881]
[1755180881145,2.17675416,4594.0,4593.2,2.17712092]
[1755180881355,2.65074831,4594.1,4593.3,2.17705564]
[1755180881550,0.474,4594.1,4593.4,3.746]
[1755180881845,2.17682175,4593.9,4593.5,3.746]
[1755180882138,2.1767541,4594.0,4593.5,3.746]
[1755180882350,0.474,4593.9,4593.5,3.746]
[1755180882540,0.474,4593.9,4592.6,1.1406]
[1755180882712,0.57177763,4593.8,4592.7,0.11406]
[1755180883041,0.474,4593.7,4592.8,3.746]
[1755180883242,0.474,4594.1,4592.9,3.746]
[1755180883446,2.65071001,4594.1,4592.9,5.92322935]
[1755180883631,2.17686204,4593.8,4592.9,3.746]
[1755180883811,2.17678965,4594.0,4592.9,3.746]
[1755180884016,3.0,4594.0,4593.0,2.17722621]
[1755180884232,3.55,4593.9,4593.0,0.0008]
[1755180884442,2.17717881,4593.1,4593.0,0.0008]
[1755180884642,0.55,4593.0,4592.0,0.001]
[1755180884945,0.474,4592.9,4592.3,3.745]
[1755180885121,0.49577763,4592.9,4592.2,3.744]
[1755180885321,0.474,4592.9,4592.2,4.1185]
[1755180885645,0.55,4593.4,4592.2,0.3745]
[1755180885866,0.55,4593.4,4592.0,0.001]
[1755180885867,2.17732102,4592.8,4592.3,3.8538]
[1755180886147,2.17713609,4593.2,4592.4,2.17747185]
[1755180886326,1.024,4593.5,4592.0,2.20043293]
[1755180886327,0.1088,4593.3,4592.7,0.1088]
[1755180886728,0.1088,4593.3,4592.7,6.03012291]
[1755180886931,0.474,4593.5,4593.0,0.1088]
[1755180887313,0.1088,4593.6,4593.0,0.1088]
[1755180887519,3.0,4593.5,4593.0,0.1088]
[1755180887717,0.1088,4593.6,4593.0,0.1088]
[1755180887940,0.1088,4593.6,4593.0,0.49408]
[1755180888420,0.1088,4593.6,4593.1,3.743]
[1755180888636,1.1281,4594.5,4593.1,3.743]
[1755180888637,3.1088,4594.2,4593.5,0.1088]
[1755180888851,0.1088,4594.2,4593.5,0.1088]
[1755180889064,0.1088,4594.2,4593.6,0.02176941]
[1755180889222,2.17670954,4594.1,4593.3,2.17704727]
[1755180889578,2.17663927,4594.3,4594.0,0.1088]
[1755180889770,0.55934778,4595.3,4594.1,3.76476704]
[1755180889917,0.474,4595.3,4594.1,4.8836]
[1755180890229,2.17622413,4595.2,4594.3,2.17656739]
[1755180890432,0.474,4595.3,4593.8,1.1406]
[1755180890627,0.474,4595.3,4593.9,0.43582799]
[1755180890842,0.474,4595.3,4594.0,3.742]
[1755180891050,0.474,4595.8,4594.1,0.02176704]
[1755180891355,0.474,4595.8,4595.2,2.17616226]
[1755180891672,0.002,4596.2,4595.3,3.742]
[1755180891854,0.002,4596.2,4595.6,2.17599092]
[1755180892056,2.17596062,4595.7,4594.7,2.17638208]
[1755180892257,2.17596062,4595.7,4594.2,1.1482]
[1755180892258,2.17599363,4595.7,4594.8,3.741]
[1755180892559,2.17599363,4595.7,4594.5,2.17650711]
[1755180892860,2.17589973,4595.8,4594.6,3.741]
[1755180893170,0.26100997,4595.7,4594.6,3.741]
[1755180893472,0.4342,4595.9,4594.2,1.1482]
[1755180893973,0.4342,4595.9,4595.0,2.17626923]
[1755180894139,2.17590659,4595.8,4595.1,3.74]
[1755180894470,2.61007132,4595.9,4595.2,3.74]
[1755180894771,0.4342,4595.9,4595.2,3.74]
[1755180894988,0.002,4596.2,4595.1,0.0008]
[1755180894989,0.4342,4595.8,4595.1,0.0008]
[1755180895164,0.4342,4595.8,4595.2,3.739]
[1755180895337,0.55,4595.7,4594.0,1.1482]
[1755180895675,2.17637617,4594.8,4594.1,3.739]
[1755180895876,2.17647007,4594.6,4593.7,2.17687255]
[1755180896078,0.4342,4595.0,4593.4,1.1482]
[1755180896278,0.4342,4595.0,4592.5,2.17744521]
[1755180896279,2.17657011,4594.4,4593.6,3.739]
[1755180896454,0.4342,4594.5,4593.6,3.739]
[1755180896652,2.17637719,4594.8,4593.5,8.11017007]
[1755180896888,2.17632635,4594.9,4593.6,3.739]
[1755180897120,0.4342,4595.2,4593.7,1.5949]
[1755180897269,2.17637177,4594.9,4593.7,1.5949]
[1755180897573,0.4342,4595.0,4593.6,0.81101701]
[1755180897780,2.17642345,4594.7,4593.7,3.738]
[1755180898072,2.61048211,4595.0,4594.0,2.17670984]
[1755180898290,2.1761473,4595.3,4593.7,4.1847]
[1755180898291,0.55,4595.3,4593.7,4.1847]
[1755180898457,2.17628615,4595.0,4593.9,2.17679883]
[1755180898654,0.4342,4595.4,4594.0,3.738]
[1755180898882,3.0,4595.3,4594.0,3.738]
[1755180899043,0.4342,4595.4,4594.0,3.738]
[1755180899374,0.4342,4595.4,4594.1,2.1767049]
[1755180899571,3.0,4595.3,4594.4,2.17652056]
[1755180899776,3.0,4595.3,4594.0,4.8862]
[1755180900076,5.17614565,4595.3,4594.3,2.17658201]
[1755180900375,2.72771112,4596.2,4594.4,3.32471922]
[1755180900376,0.4362,4596.2,4594.4,3.32471922]
[1755180900673,2.17589535,4595.9,4595.0,2.1762691]
[1755180900897,0.002,4596.2,4595.1,3.75876231]
[1755180901074,0.002,4596.2,4595.1,0.02176231]
[1755180901372,2.1758023,4596.1,4595.2,5.91217849]
[1755180901575,0.002,4596.2,4595.7,2.17590875]
[1755180901767,0.002,4596.2,4596.1,2.1757577]
[1755180901939,0.0012,4596.2,4596.1,7.08171527]
[1755180902144,0.0012,4596.2,4596.1,7.5066577]
[1755180902440,0.0012,4596.2,4595.9,2.17580788]
[1755180902645,0.0012,4596.2,4595.9,0.0008]
[1755180902996,0.0012,4596.2,4596.0,3.735]
[1755180903195,0.002,4596.7,4596.2,2.17571036]
[1755180903360,0.002,4597.2,4596.4,2.17559432]
[1755180903547,0.002,4597.2,4597.1,2.17528441]
[1755180903747,0.002,4597.2,4597.1,7.52693725]
[1755180903949,0.002,4597.2,4597.1,7.50518441]
[1755180904264,0.002,4597.2,4597.1,7.05848441]
[1755180904467,0.4342,4599.8,4597.1,5.4332]
[1755180904681,2.17433369,4599.2,4597.2,3.3234371]
[1755180904883,0.21743337,4599.1,4597.3,1.61665189]
[1755180905076,2.17377127,4600.3,4597.5,0.55]
[1755180905274,2.17315716,4601.6,4597.7,0.55]
[1755180905463,2.17315716,4601.6,4597.6,1.61665047]
[1755180905464,0.4342,4602.9,4599.6,0.55]
[1755180905658,0.4342,4602.9,4600.4,2.17369004]
[1755180905864,0.4342,4602.9,4600.5,5.35063676]
[1755180906166,0.4342,4602.9,4600.1,2.17383867]
[1755180906167,0.36886546,4602.8,4601.4,2.17323089]
[1755180906365,0.08488119,4602.9,4601.5,4.90393204]
[1755180906620,2.17245033,4603.1,4602.0,2.17295886]
[1755180906822,2.17245033,4603.1,4601.6,1.1482]
[1755180906823,0.4342,4603.6,4601.6,4.1482]
[1755180907025,0.08612026,4603.1,4601.9,1.1482]
[1755180907304,1.5162,4603.0,4601.4,3.731]
[1755180907466,0.16031064,4602.9,4601.5,3.731]
[1755180907798,2.17264589,4602.7,4601.6,3.731]
[1755180908100,2.17302038,4601.9,4599.8,3.0]
[1755180908265,0.4342,4601.8,4600.1,4.8792]
[1755180908459,0.4342,4601.8,4600.2,0.02173818]
[1755180908665,0.4342,4602.6,4601.2,2.17332115]
[1755180908865,2.17309565,4601.8,4601.3,3.731]
[1755180909100,0.21730957,4601.7,4601.3,3.731]
[1755180909303,2.17305238,4601.9,4601.3,3.731]
[1755180909466,0.4342,4602.5,4601.3,3.731]
[1755180909812,3.0,4602.3,4600.7,3.729]
[1755180909966,0.55,4601.7,4600.1,3.729]
[1755180910166,2.17348779,4600.9,4600.8,0.1088]
[1755180910399,2.17348779,4600.9,4600.1,3.729]
[1755180910400,0.43468946,4600.9,4600.1,3.729]
[1755180910601,2.17342256,4601.1,4600.1,3.729]
[1755180910761,3.1088,4601.7,4600.8,0.1088]
[1755180910965,0.13057763,4601.7,4600.8,0.1088]
[1755180911196,2.17327091,4601.4,4600.8,0.1088]
[1755180911376,2.17317279,4601.6,4600.8,0.1088]
[1755180911565,0.22819728,4601.5,4601.1,2.17339133]
[1755180911765,0.16031064,4602.9,4601.2,1.5949]
[1755180912228,0.4342,4602.8,4600.6,1.5949]
[1755180912408,0.55,4602.0,4601.5,0.1088]
[1755180912712,2.17321129,4601.5,4601.2,0.1088]
[1755180912875,2.17329885,4601.3,4601.2,0.1096]
[1755180913205,0.26074989,4601.3,4601.2,0.0008]
[1755180913377,27.2183694,4601.3,4601.2,0.0008]
[1755180913583,3.0,4601.1,4599.8,3.728]
[1755180913805,3.0,4600.9,4599.8,3.728]
[1755180914008,21.06087055,4600.3,4598.9,3.727]
[1755180914174,2.17391304,4600.0,4597.7,1.14617363]
[1755180914375,2.17445421,4598.9,4597.9,9.6552]
[1755180914574,2.17434119,4599.1,4598.0,2.17485863]
[1755180914910,3.0,4599.3,4597.9,3.727]
[1755180915206,0.4342,4599.3,4597.9,3.727]
[1755180915409,2.17467121,4598.4,4597.9,3.727]
[1755180915583,2.17483393,4598.1,4597.9,3.727]
[1755180915910,2.17476206,4598.3,4597.9,3.727]
[1755180916129,0.21746712,4598.4,4597.9,3.727]
[1755180916297,2.17485863,4598.0,4596.9,2.17533397]
[1755180916493,2.17511401,4597.5,4596.6,1.1482]
[1755180916804,2.17506234,4597.6,4596.7,3.727]
[1755180917004,0.65166712,4598.4,4596.7,3.727]
[1755180917215,2.17514155,4597.5,4596.7,3.727]
[1755180917528,0.02177763,4598.3,4596.7,3.727]
[1755180917829,21.06087055,4598.6,4596.7,3.727]
[1755180917830,2.17476403,4598.2,4596.7,3.727]
[1755180918132,2.17517695,4597.4,4596.5,3.726]
[1755180918296,2.17505103,4597.6,4596.5,3.726]
[1755180918497,21.06087055,4598.1,4596.6,1.78303534]
[1755180918933,2.17504709,4597.7,4596.7,2.1754737]
[1755180919116,21.06087055,4598.1,4596.7,0.4467]
[1755180919519,0.5820869,4601.7,4596.7,0.4467]
[1755180919520,21.06087055,4598.9,4596.7,0.4467]
[1755180919695,21.49507055,4598.9,4596.8,1.1482]
[1755180919899,21.06087055,4598.0,4596.9,0.75949]
[1755180920095,2.17515716,4597.4,4596.9,0.75949]
[1755180920300,2.17515716,4597.4,4596.0,0.37358]
[1755180920301,0.4342,4597.4,4596.0,0.37358]
[1755180920533,1.082,4598.1,4596.0,0.37358]
[1755180920534,0.55,4597.0,4596.0,0.37358]
[1755180920734,2.1757577,4596.1,4596.0,0.37358]
[1755180920933,0.4342,4596.8,4594.7,1.5449]
[1755180921108,0.55,4596.7,4594.1,4.779]
[1755180921307,2.17622531,4595.2,4594.1,4.779]
[1755180921533,3.0,4596.4,4594.1,4.779]
[1755180921734,0.02177763,4596.3,4594.2,4.5233]
[1755180921898,0.55,4596.2,4594.3,2.17661014]
[1755180922099,3.0,4596.4,4594.4,4.7704]
[1755180922300,2.17591412,4595.8,4594.5,2.17651539]
[1755180922539,3.725,4596.9,4594.4,4.7704]
[1755180922540,0.15989327,4597.2,4595.9,0.001]
[1755180922838,2.17540102,4596.9,4596.0,2.17580286]
[1755180923133,0.1088,4597.1,4596.5,0.1088]
[1755180923351,0.1088,4597.1,4596.1,0.59018029]
[1755180923352,0.02177763,4597.0,4596.1,0.59018029]
[1755180923560,0.9934,4597.0,4596.1,0.59018029]
[1755180923736,0.1088,4596.7,4596.1,0.59018029]
[1755180923941,2.17571036,4596.2,4596.1,0.59018029]
[1755180924264,0.1088,4596.7,4596.2,2.17570313]
[1755180924577,0.1088,4596.9,4596.4,2.17560267]
[1755180924879,0.1088,4597.7,4596.6,0.1088]
[1755180925084,0.4434,4598.3,4597.8,0.1088]
[1755180925282,2.17495439,4597.8,4596.9,2.17535051]
[1755180925662,0.1088,4598.0,4597.2,0.1088]
[1755180925835,0.4434,4598.6,4597.2,2.17523181]
[1755180926032,0.1088,4598.5,4597.8,0.1088]
[1755180926564,0.1088,4599.2,4598.4,0.1088]
[1755180926749,0.1088,4599.4,4598.6,2.17457487]
[1755180926958,0.002,4599.5,4599.2,0.1088]
[1755180927329,0.4434,4599.4,4598.9,0.1088]
[1755180927532,0.002,4599.5,4598.9,0.1088]
[1755180927755,2.17618497,4599.5,4598.9,0.0872]
[1755180927964,2.17615258,4599.5,4598.9,0.0872]
[1755180928143,2.17615258,4599.5,4598.9,0.31337257]
[1755180928352,2.17615258,4599.5,4598.9,0.0872]
[1755180928559,0.002,4599.5,4598.9,0.0872]
[1755180928759,2.17615595,4599.5,4598.9,0.0872]
[1755180928960,0.002,4599.5,4598.9,0.0872]
[1755180929285,2.17616084,4599.5,4598.9,0.31336754]
[1755180929584,0.002,4599.5,4598.9,0.0872]
[1755180930162,0.002,4599.5,4599.4,2.17419663]
[1755180930385,0.002,4599.5,4598.9,0.0872]
[1755180930386,0.002,4599.4,4598.9,2.5012928]
[1755180930588,0.002,4599.4,4598.2,2.17476403]
[1755180930763,0.4454,4599.4,4599.0,0.1088]
[1755180930970,2.6176439,4599.3,4598.2,2.17475846]
[1755180931187,1.5095,4599.3,4598.3,0.69441585]
[1755180931382,2.17429602,4599.2,4598.4,2.17462297]
[1755180931605,2.1743939,4599.0,4598.3,0.69441585]
[1755180931810,0.55,4599.1,4597.8,0.001]
[1755180931999,2.17487534,4598.0,4597.8,0.001]
[1755180932199,0.55,4598.7,4597.8,0.001]
[1755180932509,3.723,4599.2,4597.8,0.001]
[1755180932510,3.725,4599.4,4598.0,2.17484857]
[1755180932710,3.55,4599.3,4598.0,0.0008]
[1755180933011,0.4434,4599.2,4598.0,0.0008]
[1755180933210,0.4434,4599.2,4597.9,2.17490593]
[1755180933529,0.002,4599.4,4598.4,2.17464901]
[1755180933673,0.002,4599.4,4598.0,0.4381]
[1755180933876,2.17433641,4599.2,4597.8,0.001]
[1755180934071,0.002,4599.4,4599.1,2.17431056]
[1755180934275,0.002,4599.4,4599.3,2.1742439]
[1755180935176,0.002,4599.4,4599.3,3.6577439]
[1755180935374,0.002,4599.4,4599.3,2.50114533]
[1755180935593,0.002,4599.4,4599.3,5.8962439]
[1755180936210,0.002,4599.4,4599.3,2.1742439]
[1755180936434,0.002,4599.4,4599.3,7.72838776]
[1755180936584,0.002,4599.4,4599.3,7.70664533]
[1755180936930,0.002,4599.4,4598.6,0.4381]
[1755180937239,0.002,4599.4,4598.7,3.721]
[1755180937515,0.002,4599.4,4599.3,2.1742439]
[1755180937680,0.002,4599.4,4599.3,3.67948633]
[1755180937881,1e-08,4599.4,4599.3,3.98464533]
[1755180938280,0.4434,4601.7,4599.4,2.17419663]
[1755180938627,2.17310549,4601.8,4600.9,2.17347311]
[1755180938829,0.21731055,4601.7,4600.9,2.17345841]
[1755180938986,3.721,4602.2,4600.6,3.721]
[1755180939317,0.55,4602.0,4599.5,0.4381]
[1755180939519,0.55,4601.8,4599.5,0.4381]
[1755180939833,0.55,4602.0,4599.5,0.4381]
[1755180939834,0.55,4601.1,4600.2,2.17381317]
[1755180940123,0.55,4601.1,4599.5,0.4381]
[1755180940343,2.17356825,4600.8,4599.5,2.17414284]
[1755180940481,0.55,4601.0,4599.4,3.72]
[1755180940680,0.55,4601.0,4599.5,0.02174149]
[1755180940980,2.17358261,4600.7,4600.2,0.1088]
[1755180941482,0.1088,4600.8,4600.2,0.1088]
[1755180941681,2.17358228,4600.7,4600.2,0.1088]
[1755180942093,0.28129,4600.8,4600.2,0.1088]
[1755180942282,2.17364444,4600.6,4600.2,0.1088]
[1755180942480,2.17376862,4600.4,4600.2,0.1088]
[1755180942781,0.4434,4600.3,4600.2,0.1088]
[1755180942980,0.4434,4600.3,4600.2,0.0008]
[1755180943213,1.1749,4600.8,4600.2,0.0008]
[1755180943415,0.51683,4600.7,4600.2,0.0008]
[1755180943616,0.4434,4601.4,4600.2,0.0008]
[1755180943830,1.0681,4601.5,4600.2,0.0008]
[1755180943831,0.1088,4601.3,4600.6,0.1088]
[1755180944290,2.28211505,4601.3,4600.6,0.1088]
[1755180944494,2.28211505,4601.3,4600.2,0.0008]
[1755180944495,0.55,4600.8,4600.2,0.0008]
[1755180944700,2.17377127,4600.3,4600.2,0.0008]
[1755180944922,2.61717127,4600.3,4600.2,0.0008]
[1755180945132,2.17386578,4600.1,4600.0,0.1088]
[1755180945625,0.55,4601.1,4600.0,0.1088]
[1755180945929,2.17358228,4600.7,4600.0,0.1088]
[1755180946137,2.17372404,4600.4,4600.1,0.02173865]
[1755180946347,0.1088,4600.8,4600.0,0.1088]
[1755180946508,2.17398662,4599.9,4599.2,3.717]
[1755180946840,0.1088,4600.4,4599.7,0.1088]
[1755180947046,2.17400756,4599.8,4599.7,0.1088]
[1755180947249,0.1088,4600.4,4599.7,0.1088]
[1755180947250,2.17397025,4599.9,4599.7,0.1088]
[1755180947448,0.1088,4600.4,4599.7,0.1088]
[1755180948349,2.17382683,4600.2,4599.7,0.1088]
[1755180948657,0.1088,4600.6,4600.0,0.1088]
[1755180948862,5.08127763,4600.5,4598.3,1.4835]
[1755180949180,2.17438727,4599.0,4598.3,2.17470741]
[1755180949324,2.17434753,4599.1,4598.2,5.8907612]
[1755180949666,2.17429448,4599.2,4598.9,0.1088]
[1755180949871,0.46517763,4599.1,4598.2,3.716]
[1755180950017,3.0,4598.9,4597.3,2.17615352]
[1755180950225,21.06087055,4599.7,4598.0,0.1088]
[1755180950226,0.1088,4598.8,4598.0,0.1088]
[1755180950421,0.55,4599.5,4598.1,1.4835]
[1755180950674,0.1088,4599.0,4598.4,0.1088]
[1755180950831,0.1088,4598.5,4597.8,0.1098]
[1755180951153,0.1088,4598.5,4597.9,0.02174905]
[1755180951358,0.02177763,4598.5,4597.8,0.001]
[1755180951545,0.1088,4598.5,4597.9,0.1088]
[1755180951861,2.17475682,4598.3,4597.9,0.1088]
[1755180952028,0.4434,4598.9,4597.8,0.001]
[1755180952029,3.0,4599.5,4598.0,0.02174858]
[1755180952228,0.4468,4599.5,4598.2,0.1088]
[1755180952483,2.17438393,4599.1,4598.7,0.1088]
[1755180952684,2.17438393,4599.1,4598.2,0.24498989]
[1755180952685,0.002,4599.2,4598.6,2.17456773]
[1755180952979,0.002,4599.2,4599.0,0.1088]
[1755180953144,2.17433845,4599.1,4599.0,0.1096]
[1755180953362,0.0012,4599.2,4599.0,0.1096]
[1755180954024,0.0012,4599.2,4599.1,3.71653845]
[1755180954230,0.0012,4599.2,4599.1,5.014995]
[1755180954655,0.0012,4599.2,4599.1,4.68809357]
[1755180955466,0.0012,4599.2,4599.1,8.123795]
[1755180955631,1e-08,4599.2,4599.1,7.79689357]
[1755180955831,0.002,4599.7,4599.6,2.17410209]
[1755180956036,0.002,4599.7,4599.6,5.95757219]
[1755180956242,0.002,4599.7,4599.6,7.58683117]
[1755180956933,0.002,4599.7,4599.6,11.30083117]
[1755180957134,0.4468,4602.7,4599.8,2.17400756]
[1755180957339,2.17287326,4602.3,4601.3,2.17326877]
[1755180957637,3.0,4602.5,4601.8,0.1088]
[1755180957866,2.17297038,4602.0,4601.8,0.1088]
[1755180958333,0.6289,4602.6,4601.8,0.1088]
[1755180958334,0.55,4602.5,4601.8,0.1088]
[1755180958533,0.1088,4602.3,4601.8,0.1088]
[1755180958861,2.17301549,4601.9,4601.8,0.1088]
[1755180959063,0.36639971,4601.9,4601.8,0.1088]
[1755180959261,0.1088,4602.3,4601.8,0.1088]
[1755180959560,0.1088,4602.7,4601.8,0.1088]
[1755180960132,0.1088,4602.7,4601.8,2.28182241]
[1755180960332,0.1088,4602.7,4601.8,2.17304228]
[1755180960671,1.487,4603.2,4601.3,4.1778]
[1755180960672,0.4468,4604.2,4602.6,0.1088]
[1755180960871,0.1088,4603.9,4602.6,0.1088]
[1755180961044,0.4468,4604.2,4602.5,2.172725]
[1755180961045,2.17216586,4603.7,4602.5,2.172725]
[1755180961366,2.17264529,4602.7,4601.8,3.712]
[1755180961568,0.1088,4603.2,4602.5,0.1088]
[1755180961863,0.36591659,4603.6,4602.7,2.17260222]
[1755180962071,2.17225753,4603.6,4603.0,0.1088]
[1755180962246,0.4468,4604.3,4603.5,0.1088]
[1755180962656,2.17207001,4604.0,4603.7,0.1088]
[1755180962831,1.50877763,4603.9,4602.6,3.711]
[1755180963037,2.17226722,4603.5,4603.0,0.1088]
[1755180963343,2.17236677,4603.3,4602.5,2.17272446]
[1755180963543,2.17226023,4603.5,4603.0,0.1088]
[1755180963749,2.17231087,4603.4,4603.0,0.1088]
[1755180963957,2.17236082,4603.3,4603.0,0.1088]
[1755180964155,2.17229781,4603.5,4603.0,0.1088]
[1755180964430,0.002,4603.7,4603.6,2.17221305]
[1755180964634,0.002,4603.7,4603.6,7.85786282]
[1755180964865,0.002,4603.7,4603.6,8.29356425]
[1755180965467,0.002,4603.7,4603.6,7.96666282]
[1755180965830,1e-08,4603.7,4603.6,10.96666282]
[1755180966033,0.1088,4605.8,4603.7,3.0]
[1755180966347,1.487,4608.1,4605.2,2.17145423]
[1755180966550,0.1088,4607.7,4607.0,0.1088]
[1755180966741,2.17044058,4607.4,4607.0,0.1088]
[1755180966951,0.4468,4607.9,4606.9,2.1706426]
[1755180967158,21.06087055,4607.1,4606.5,0.32690143]
[1755180967490,0.55,4606.7,4604.7,0.4638]
[1755180967788,0.55,4606.9,4604.8,1.0784]
[1755180967931,3.02177763,4606.8,4604.8,1.0784]
[1755180968269,2.17130556,4605.6,4604.3,3.707]
[1755180968474,0.4468,4605.9,4604.0,4.7854]
[1755180968639,0.4468,4607.9,4604.3,0.32187154]
[1755180968978,0.74062351,4609.3,4604.7,0.55]
[1755180969177,0.651303,4609.3,4605.9,0.55]
[1755180969391,0.4468,4609.4,4606.1,3.0]
[1755180969546,0.4468,4609.4,4606.4,0.55]
[1755180969740,0.4468,4609.4,4606.6,0.55]
[1755180969741,2.17068821,4609.0,4606.6,0.55]
[1755180969944,0.001,4609.0,4607.1,0.55]
[1755180970183,0.001,4609.0,4607.4,2.17042149]
[1755180970473,0.001,4609.0,4608.9,2.16971511]
[1755180970660,0.001,4609.0,4608.9,7.41791511]
[1755180970858,0.001,4609.0,4608.9,10.58204837]
[1755180971058,0.001,4609.0,4608.9,10.41791511]
[1755180971259,1e-08,4609.0,4608.9,10.96791511]
[1755180971463,1e-08,4609.0,4608.9,12.80041389]
[1755180971657,1e-08,4609.0,4608.9,12.47754235]
[1755180972188,1e-08,4609.0,4608.9,13.90754235]
[1755180972345,1e-08,4609.0,4608.9,10.52441389]
[1755180972554,1e-08,4609.0,4608.9,10.20254235]
[1755180972894,1e-08,4609.0,4608.9,5.16971511]
[1755180973083,1e-08,4609.0,4607.5,1.0784]